[Event "January 2 Late 2024"]
[Site "https://www.chess.com"]
[Date "2024.01.02"]
[Round "5"]
[White "Leenhouts, Koen"]
[Black "Syaputra, Arifa Rizki"]
[Result "0-1"]
[Board "70"]
[TimeControl "180+1"]
[WhiteFideId "1008439"]
[BlackFideId "7105100"]
[WhiteElo "2527"]
[BlackElo "2699"]
[WhiteTeam "NED"]
[BlackTeam "INA"]
[WhiteClock "0:00:03"]
[BlackClock "0:00:18"]

1. d4 {[%clk 0:03:00]}  Nf6 {[%clk 0:02:59]} 2. Nf3 {[%clk 0:03:01]}  e6 {[%clk 0:03:00]} 3. g3 {[%clk 0:03:02]}  b5 {[%clk 0:03:00]} 4. Bg2 {[%clk 0:03:03]}  Bb7 {[%clk 0:03:00]} 5. O-O {[%clk 0:03:03]}  Be7 {[%clk 0:03:00]} 6. a4 {[%clk 0:03:01]}  b4 {[%clk 0:02:59]} 7. c3 {[%clk 0:03:01]}  O-O {[%clk 0:02:43]} 8. Bg5 {[%clk 0:02:50]}  a5 {[%clk 0:02:18]} 9. c4 {[%clk 0:02:49]}  d6 {[%clk 0:02:13]} 10. Nbd2 {[%clk 0:02:48]}  Nbd7 {[%clk 0:02:11]} 11. Qc2 {[%clk 0:02:43]}  c5 {[%clk 0:02:08]} 12. dxc5 {[%clk 0:02:38]}  Nxc5 {[%clk 0:02:04]} 13. Nb3 {[%clk 0:02:37]}  Be4 {[%clk 0:01:52]} 14. Qd1 {[%clk 0:02:34]}  h6 {[%clk 0:01:50]} 15. Nxc5 {[%clk 0:02:30]}  dxc5 {[%clk 0:01:49]} 16. Bf4 {[%clk 0:02:21]}  Qb6 {[%clk 0:01:49]} 17. Ne5 {[%clk 0:02:13]}  Rfd8 {[%clk 0:01:46]} 18. Qc1 {[%clk 0:02:12]}  Qb7 {[%clk 0:01:43]} 19. f3 {[%clk 0:02:02]}  Bc6 {[%clk 0:01:21]} 20. e4 {[%clk 0:01:48]}  Be8 {[%clk 0:01:16]} 21. Qc2 {[%clk 0:01:35]}  b3 {[%clk 0:00:56]} 22. Qe2 {[%clk 0:01:32]}  Nd7 {[%clk 0:00:52]} 23. Nxd7 {[%clk 0:01:26]}  Bxd7 {[%clk 0:00:51]} 24. Be5 {[%clk 0:01:26]}  Bc6 {[%clk 0:00:48]} 25. Bc3 {[%clk 0:01:25]}  Qd7 {[%clk 0:00:39]} 26. Rfd1 {[%clk 0:01:22]}  Qe8 {[%clk 0:00:40]} 27. Qe1 {[%clk 0:01:18]}  Rxd1 {[%clk 0:00:35]} 28. Rxd1 {[%clk 0:01:11]}  Bd8 {[%clk 0:00:30]} 29. Qe3 {[%clk 0:01:11]}  Qe7 {[%clk 0:00:25]} 30. Be5 {[%clk 0:00:59]}  Bxa4 {[%clk 0:00:19]} 31. Bd6 {[%clk 0:00:59]}  Qb7 {[%clk 0:00:18]} 32. Bxc5 {[%clk 0:00:46]}  Rc8 {[%clk 0:00:19]} 33. Bd4 {[%clk 0:00:35]}  Be7 {[%clk 0:00:17]} 34. c5 {[%clk 0:00:28]}  e5 {[%clk 0:00:18]} 35. Bxe5 {[%clk 0:00:16]}  Bxc5 {[%clk 0:00:18]} 36. Bd4 {[%clk 0:00:16]}  Rd8 {[%clk 0:00:19]} 37. Bf1 {[%clk 0:00:10]}  Rxd4 {[%clk 0:00:18]} 38. Rxd4 {[%clk 0:00:09]}  Qb6 {[%clk 0:00:19]} 39. Rd8+ {[%clk 0:00:03]}  Kh7 {[%clk 0:00:18]} 0-1

[Event "January 2 Late 2024"]
[Site "https://www.chess.com"]
[Date "2024.01.02"]
[Round "5"]
[White "Nazari, Arad"]
[Black "Tao, Sihan"]
[Result "0-1"]
[Board "71"]
[TimeControl "180+1"]
[WhiteFideId "12577324"]
[BlackFideId "30982677"]
[WhiteElo "2694"]
[BlackElo "2510"]
[WhiteTeam "IRI"]
[BlackTeam "USA"]
[WhiteClock "0:00:01"]
[BlackClock "0:00:19"]

1. e4 {[%clk 0:02:59]}  c5 {[%clk 0:02:57]} 2. Nf3 {[%clk 0:02:56]}  d6 {[%clk 0:02:57]} 3. Bb5+ {[%clk 0:02:52]}  Bd7 {[%clk 0:02:56]} 4. Bxd7+ {[%clk 0:02:52]}  Nxd7 {[%clk 0:02:57]} 5. Qe2 {[%clk 0:02:51]}  Ngf6 {[%clk 0:02:57]} 6. O-O {[%clk 0:02:46]}  e6 {[%clk 0:02:54]} 7. c3 {[%clk 0:02:41]}  Be7 {[%clk 0:02:53]} 8. d4 {[%clk 0:02:38]}  O-O {[%clk 0:02:51]} 9. Rd1 {[%clk 0:02:30]}  Qc7 {[%clk 0:02:48]} 10. Bg5 {[%clk 0:02:18]}  h6 {[%clk 0:02:34]} 11. Bh4 {[%clk 0:02:16]}  Rfe8 {[%clk 0:02:29]} 12. Na3 {[%clk 0:02:11]}  a6 {[%clk 0:02:28]} 13. Rac1 {[%clk 0:01:57]}  Rac8 {[%clk 0:02:24]} 14. h3 {[%clk 0:01:43]}  cxd4 {[%clk 0:02:10]} 15. Nxd4 {[%clk 0:01:43]}  Nc5 {[%clk 0:02:08]} 16. Bxf6 {[%clk 0:01:40]}  Bxf6 {[%clk 0:02:08]} 17. Nb3 {[%clk 0:01:29]}  Nxb3 {[%clk 0:01:41]} 18. axb3 {[%clk 0:01:28]}  d5 {[%clk 0:01:41]} 19. exd5 {[%clk 0:01:19]}  exd5 {[%clk 0:01:42]} 20. Qd2 {[%clk 0:01:18]}  Bg5 {[%clk 0:01:38]} 21. Qxd5 {[%clk 0:01:18]}  Bxc1 {[%clk 0:01:39]} 22. Rxc1 {[%clk 0:01:19]}  Rcd8 {[%clk 0:01:39]} 23. Qf3 {[%clk 0:01:17]}  Re6 {[%clk 0:01:24]} 24. Nc4 {[%clk 0:01:15]}  Qc6 {[%clk 0:01:19]} 25. Qg4 {[%clk 0:01:05]}  Qb5 {[%clk 0:01:01]} 26. Rd1 {[%clk 0:00:59]}  Ree8 {[%clk 0:00:49]} 27. Rxd8 {[%clk 0:00:27]}  Rxd8 {[%clk 0:00:50]} 28. b4 {[%clk 0:00:27]}  Qd7 {[%clk 0:00:48]} 29. Qf4 {[%clk 0:00:23]}  Qd1+ {[%clk 0:00:43]} 30. Kh2 {[%clk 0:00:23]}  b5 {[%clk 0:00:42]} 31. Ne5 {[%clk 0:00:15]}  Qd6 {[%clk 0:00:40]} 32. Qxf7+ {[%clk 0:00:15]}  Kh7 {[%clk 0:00:40]} 33. f4 {[%clk 0:00:16]}  Qf6 {[%clk 0:00:37]} 34. Qxf6 {[%clk 0:00:11]}  gxf6 {[%clk 0:00:38]} 35. Nc6 {[%clk 0:00:10]}  Rd2 {[%clk 0:00:37]} 36. Nb8 {[%clk 0:00:11]}  Rxb2 {[%clk 0:00:24]} 37. Nxa6 {[%clk 0:00:11]}  Rb3 {[%clk 0:00:24]} 38. Nc7 {[%clk 0:00:09]}  Rxc3 {[%clk 0:00:24]} 39. Nxb5 {[%clk 0:00:10]}  Rc4 {[%clk 0:00:25]} 40. Kg3 {[%clk 0:00:08]}  Rxb4 {[%clk 0:00:23]} 41. Nd6 {[%clk 0:00:09]}  Kg6 {[%clk 0:00:23]} 42. Kf3 {[%clk 0:00:08]}  Rd4 {[%clk 0:00:22]} 43. Ne4 {[%clk 0:00:07]}  h5 {[%clk 0:00:21]} 44. g4 {[%clk 0:00:04]}  Rd3+ {[%clk 0:00:21]} 45. Kg2 {[%clk 0:00:05]}  h4 {[%clk 0:00:21]} 46. f5+ {[%clk 0:00:04]}  Kg7 {[%clk 0:00:22]} 47. Nf2 {[%clk 0:00:03]}  Rg3+ {[%clk 0:00:21]} 48. Kh2 {[%clk 0:00:04]}  Kf7 {[%clk 0:00:21]} 49. Ne4 {[%clk 0:00:05]}  Re3 {[%clk 0:00:22]} 50. Nf2 {[%clk 0:00:02]}  Ke7 {[%clk 0:00:22]} 51. Kg2 {[%clk 0:00:02]}  Kd6 {[%clk 0:00:20]} 52. Nd1 {[%clk 0:00:02]}  Rg3+ {[%clk 0:00:20]} 53. Kh2 {[%clk 0:00:02]}  Ke5 {[%clk 0:00:20]} 54. Nf2 {[%clk 0:00:02]}  Kf4 {[%clk 0:00:20]} 55. Nd1 {[%clk 0:00:01]}  Kf3 {[%clk 0:00:20]} 56. Nc3 {[%clk 0:00:01]}  Rg2+ {[%clk 0:00:19]} 57. Kh1 {[%clk 0:00:02]}  Rc2 {[%clk 0:00:19]} 58. Nd5 {[%clk 0:00:02]}  Kg3 {[%clk 0:00:19]} 59. Nxf6 {[%clk 0:00:01]}  Rc1# {[%clk 0:00:19]} 0-1

[Event "January 2 Late 2024"]
[Site "https://www.chess.com"]
[Date "2024.01.02"]
[Round "5"]
[White "Manolache, Marius"]
[Black "Nielsen, Viktor Haarmark"]
[Result "1-0"]
[Board "72"]
[TimeControl "180+1"]
[WhiteFideId "1201530"]
[BlackFideId "1444492"]
[WhiteElo "2676"]
[BlackElo "2468"]
[WhiteTeam "ROU"]
[BlackTeam "DEN"]
[WhiteClock "0:01:30"]
[BlackClock "0:01:47"]

1. d4 {[%clk 0:03:00]}  Nf6 {[%clk 0:02:59]} 2. c4 {[%clk 0:03:00]}  e6 {[%clk 0:03:00]} 3. Nc3 {[%clk 0:03:00]}  d5 {[%clk 0:03:01]} 4. Bg5 {[%clk 0:02:59]}  dxc4 {[%clk 0:02:58]} 5. e3 {[%clk 0:02:59]}  h6 {[%clk 0:02:58]} 6. Bxf6 {[%clk 0:02:54]}  Qxf6 {[%clk 0:02:59]} 7. Nf3 {[%clk 0:02:52]}  c5 {[%clk 0:02:59]} 8. d5 {[%clk 0:02:46]}  Qd8 {[%clk 0:02:46]} 9. Bxc4 {[%clk 0:02:44]}  exd5 {[%clk 0:02:46]} 10. Bxd5 {[%clk 0:02:45]}  Nc6 {[%clk 0:02:46]} 11. Bxc6+ {[%clk 0:02:41]}  bxc6 {[%clk 0:02:47]} 12. Qxd8+ {[%clk 0:02:40]}  Kxd8 {[%clk 0:02:48]} 13. Ne5 {[%clk 0:02:40]}  Be6 {[%clk 0:02:46]} 14. Nxc6+ {[%clk 0:02:38]}  Kc7 {[%clk 0:02:46]} 15. Ne5 {[%clk 0:02:35]}  Be7 {[%clk 0:02:39]} 16. O-O-O {[%clk 0:02:31]}  Bf6 {[%clk 0:02:35]} 17. Nd5+ {[%clk 0:02:11]}  Kb7 {[%clk 0:01:55]} 18. Nxf6 {[%clk 0:01:57]}  gxf6 {[%clk 0:01:56]} 19. Nxf7 {[%clk 0:01:41]}  Rhg8 {[%clk 0:01:51]} 20. Rhg1 {[%clk 0:01:32]}  h5 {[%clk 0:01:50]} 21. Nd6+ {[%clk 0:01:31]}  Kc6 {[%clk 0:01:49]} 22. Ne4 {[%clk 0:01:31]}  Raf8 {[%clk 0:01:47]} 23. Rd6+ {[%clk 0:01:30]} 1-0

[Event "January 2 Late 2024"]
[Site "https://www.chess.com"]
[Date "2024.01.02"]
[Round "5"]
[White "Mizzi, Jack"]
[Black "Khatoev, Eduard"]
[Result "1-0"]
[Board "73"]
[TimeControl "180+1"]
[WhiteFideId "5602521"]
[BlackFideId "24145076"]
[WhiteElo "2447"]
[BlackElo "2676"]
[WhiteTeam "MLT"]
[BlackTeam "RUS"]
[WhiteClock "0:00:03"]
[BlackClock "0:01:26"]

1. d4 {[%clk 0:03:00]}  c5 {[%clk 0:02:59]} 2. d5 {[%clk 0:03:01]}  Nf6 {[%clk 0:02:58]} 3. c4 {[%clk 0:03:01]}  d6 {[%clk 0:02:58]} 4. g3 {[%clk 0:03:02]}  Qa5+ {[%clk 0:02:58]} 5. Bd2 {[%clk 0:03:01]}  Qb6 {[%clk 0:02:59]} 6. Nc3 {[%clk 0:03:00]}  e5 {[%clk 0:02:58]} 7. dxe6 {[%clk 0:02:54]}  Bxe6 {[%clk 0:02:56]} 8. Bg2 {[%clk 0:02:54]}  Be7 {[%clk 0:02:55]} 9. Nd5 {[%clk 0:02:48]}  Bxd5 {[%clk 0:02:54]} 10. cxd5 {[%clk 0:02:47]}  Qxb2 {[%clk 0:02:53]} 11. Rb1 {[%clk 0:02:44]}  Qxa2 {[%clk 0:02:53]} 12. Rxb7 {[%clk 0:02:42]}  Nbd7 {[%clk 0:02:54]} 13. Nh3 {[%clk 0:02:37]}  Nxd5 {[%clk 0:02:52]} 14. O-O {[%clk 0:02:20]}  Rb8 {[%clk 0:02:40]} 15. Rxb8+ {[%clk 0:02:06]}  Nxb8 {[%clk 0:02:39]} 16. Bg5 {[%clk 0:02:06]}  Nc6 {[%clk 0:02:38]} 17. Bxd5 {[%clk 0:02:01]}  Qa6 {[%clk 0:02:36]} 18. Bxe7 {[%clk 0:01:52]}  Nxe7 {[%clk 0:02:35]} 19. e4 {[%clk 0:01:38]}  Nxd5 {[%clk 0:02:34]} 20. Qxd5 {[%clk 0:01:35]}  Qb6 {[%clk 0:02:29]} 21. Rd1 {[%clk 0:01:30]}  O-O {[%clk 0:02:23]} 22. Qxd6 {[%clk 0:01:27]}  Qxd6 {[%clk 0:02:22]} 23. Rxd6 {[%clk 0:01:26]}  Rc8 {[%clk 0:02:22]} 24. Kf1 {[%clk 0:01:24]}  c4 {[%clk 0:02:20]} 25. Ke1 {[%clk 0:01:24]}  a5 {[%clk 0:02:19]} 26. Rd5 {[%clk 0:01:21]}  Ra8 {[%clk 0:02:18]} 27. Kd2 {[%clk 0:01:12]}  a4 {[%clk 0:02:17]} 28. Kc3 {[%clk 0:01:12]}  a3 {[%clk 0:02:16]} 29. Rd1 {[%clk 0:01:12]}  a2 {[%clk 0:02:15]} 30. Ra1 {[%clk 0:01:12]}  Ra4 {[%clk 0:02:14]} 31. Nf4 {[%clk 0:01:11]}  Ra6 {[%clk 0:02:12]} 32. Kxc4 {[%clk 0:01:10]}  g5 {[%clk 0:02:12]} 33. Nd5 {[%clk 0:01:08]}  Rc6+ {[%clk 0:02:11]} 34. Kd3 {[%clk 0:01:08]}  Ra6 {[%clk 0:02:10]} 35. Nc3 {[%clk 0:01:08]}  Rh6 {[%clk 0:02:10]} 36. Rxa2 {[%clk 0:01:02]}  Rxh2 {[%clk 0:02:10]} 37. Ke3 {[%clk 0:00:58]}  Kg7 {[%clk 0:02:09]} 38. Ra5 {[%clk 0:00:56]}  h6 {[%clk 0:02:08]} 39. Ra7 {[%clk 0:00:53]}  Rh1 {[%clk 0:02:04]} 40. Nb5 {[%clk 0:00:51]}  Re1+ {[%clk 0:02:03]} 41. Kf3 {[%clk 0:00:49]}  Rd1 {[%clk 0:02:02]} 42. e5 {[%clk 0:00:43]}  Rd5 {[%clk 0:02:01]} 43. Nd6 {[%clk 0:00:38]}  Rxe5 {[%clk 0:02:01]} 44. Rxf7+ {[%clk 0:00:37]}  Kg6 {[%clk 0:02:01]} 45. Ra7 {[%clk 0:00:33]}  Re6 {[%clk 0:02:00]} 46. Ne4 {[%clk 0:00:32]}  Rb6 {[%clk 0:02:01]} 47. Ra3 {[%clk 0:00:30]}  h5 {[%clk 0:02:00]} 48. Rc3 {[%clk 0:00:30]}  Ra6 {[%clk 0:01:59]} 49. Rd3 {[%clk 0:00:28]}  Ra5 {[%clk 0:01:58]} 50. Rd6+ {[%clk 0:00:27]}  Kf5 {[%clk 0:01:58]} 51. Nd2 {[%clk 0:00:19]}  Ra3+ {[%clk 0:01:55]} 52. Kg2 {[%clk 0:00:19]}  Ra2 {[%clk 0:01:55]} 53. Nf3 {[%clk 0:00:18]}  g4 {[%clk 0:01:54]} 54. Nh4+ {[%clk 0:00:16]}  Ke4 {[%clk 0:01:54]} 55. Rh6 {[%clk 0:00:16]}  Ra5 {[%clk 0:01:53]} 56. Rh8 {[%clk 0:00:15]}  Rg5 {[%clk 0:01:52]} 57. Re8+ {[%clk 0:00:15]}  Kd3 {[%clk 0:01:51]} 58. f4 {[%clk 0:00:13]}  gxf3+ {[%clk 0:01:48]} 59. Kxf3 {[%clk 0:00:11]}  Ra5 {[%clk 0:01:45]} 60. Rd8+ {[%clk 0:00:11]}  Kc3 {[%clk 0:01:43]} 61. Kf4 {[%clk 0:00:10]}  Ra4+ {[%clk 0:01:43]} 62. Kf3 {[%clk 0:00:10]}  Ra5 {[%clk 0:01:42]} 63. Ng6 {[%clk 0:00:10]}  Ra6 {[%clk 0:01:40]} 64. Nf4 {[%clk 0:00:10]}  Rh6 {[%clk 0:01:39]} 65. Rd3+ {[%clk 0:00:07]}  Kc2 {[%clk 0:01:38]} 66. Rd5 {[%clk 0:00:06]}  h4 {[%clk 0:01:37]} 67. g4 {[%clk 0:00:04]}  Rh7 {[%clk 0:01:36]} 68. Kg2 {[%clk 0:00:03]}  Rf7 {[%clk 0:01:35]} 69. Rf5 {[%clk 0:00:02]}  Rc7 {[%clk 0:01:33]} 70. Kh3 {[%clk 0:00:02]}  Kb3 {[%clk 0:01:32]} 71. Kxh4 {[%clk 0:00:02]}  Rc1 {[%clk 0:01:30]} 72. Kg5 {[%clk 0:00:02]}  Rg1 {[%clk 0:01:29]} 73. Nh5 {[%clk 0:00:02]}  Rg2 {[%clk 0:01:28]} 74. Rf3+ {[%clk 0:00:03]}  Kb4 {[%clk 0:01:26]} 75. Rg3 {[%clk 0:00:03]}  Ra2 {[%clk 0:01:25]} 76. Kg6 {[%clk 0:00:03]}  Ra6+ {[%clk 0:01:25]} 77. Nf6 {[%clk 0:00:03]}  Kc5 {[%clk 0:01:24]} 78. g5 {[%clk 0:00:04]}  Kd6 {[%clk 0:01:21]} 79. Re3 {[%clk 0:00:04]}  Ra5 {[%clk 0:01:20]} 80. Re1 {[%clk 0:00:04]}  Ra3 {[%clk 0:01:18]} 81. Kg7 {[%clk 0:00:03]}  Ra6 {[%clk 0:01:17]} 82. g6 {[%clk 0:00:03]}  Ra7+ {[%clk 0:01:17]} 83. Kh6 {[%clk 0:00:03]}  Kc5 {[%clk 0:01:16]} 84. g7 {[%clk 0:00:03]}  Rxg7 {[%clk 0:01:16]} 85. Kxg7 {[%clk 0:00:03]}  Kd4 {[%clk 0:01:15]} 86. Kg6 {[%clk 0:00:03]}  Kc3 {[%clk 0:01:16]} 87. Kf5 {[%clk 0:00:03]}  Kc2 {[%clk 0:01:16]} 88. Re8 {[%clk 0:00:03]}  Kd2 {[%clk 0:01:17]} 89. Kf4 {[%clk 0:00:03]}  Kd3 {[%clk 0:01:18]} 90. Kf3 {[%clk 0:00:03]}  Kd4 {[%clk 0:01:18]} 91. Re4+ {[%clk 0:00:03]}  Kc3 {[%clk 0:01:19]} 92. Ke3 {[%clk 0:00:04]}  Kb3 {[%clk 0:01:20]} 93. Rd4 {[%clk 0:00:04]}  Ka3 {[%clk 0:01:21]} 94. Nd5 {[%clk 0:00:04]}  Ka2 {[%clk 0:01:21]} 95. Rb4 {[%clk 0:00:04]}  Ka3 {[%clk 0:01:22]} 96. Kd3 {[%clk 0:00:04]}  Ka2 {[%clk 0:01:23]} 97. Kc3 {[%clk 0:00:03]}  Ka3 {[%clk 0:01:23]} 98. Rc4 {[%clk 0:00:03]}  Ka2 {[%clk 0:01:24]} 99. Ra4+ {[%clk 0:00:03]}  Kb1 {[%clk 0:01:25]} 100. Ne3 {[%clk 0:00:03]}  Kc1 {[%clk 0:01:26]} 101. Ra1# {[%clk 0:00:03]} 1-0

[Event "January 2 Late 2024"]
[Site "https://www.chess.com"]
[Date "2024.01.02"]
[Round "5"]
[White "Rosen, Eric"]
[Black "Senft, Sean"]
[Result "1-0"]
[Board "74"]
[TimeControl "180+1"]
[WhiteFideId "2032562"]
[BlackFideId "2044960"]
[WhiteElo "2675"]
[BlackElo "2423"]
[WhiteTeam "USA"]
[BlackTeam "USA"]
[WhiteClock "0:00:42"]
[BlackClock "0:00:49"]

1. d4 {[%clk 0:03:00]}  d5 {[%clk 0:02:59]} 2. Bf4 {[%clk 0:03:01]}  Nf6 {[%clk 0:02:59]} 3. e3 {[%clk 0:03:01]}  c6 {[%clk 0:02:59]} 4. Nd2 {[%clk 0:03:01]}  Bf5 {[%clk 0:02:59]} 5. c4 {[%clk 0:03:01]}  e6 {[%clk 0:02:58]} 6. Qb3 {[%clk 0:03:01]}  Qb6 {[%clk 0:02:57]} 7. c5 {[%clk 0:03:01]}  Qxb3 {[%clk 0:02:58]} 8. axb3 {[%clk 0:03:02]}  a6 {[%clk 0:02:42]} 9. b4 {[%clk 0:03:02]}  Kd7 {[%clk 0:02:34]} 10. b5 {[%clk 0:02:59]}  cxb5 {[%clk 0:02:34]} 11. Bxb5+ {[%clk 0:02:59]}  Nc6 {[%clk 0:02:35]} 12. Ngf3 {[%clk 0:02:54]}  Nh5 {[%clk 0:01:17]} 13. Ne5+ {[%clk 0:02:49]}  Kc8 {[%clk 0:01:14]} 14. Nxc6 {[%clk 0:02:28]}  Nxf4 {[%clk 0:01:14]} 15. exf4 {[%clk 0:01:55]}  bxc6 {[%clk 0:01:13]} 16. Bxc6 {[%clk 0:01:56]}  Rb8 {[%clk 0:01:13]} 17. b3 {[%clk 0:01:42]}  Bd3 {[%clk 0:01:09]} 18. h4 {[%clk 0:01:41]}  g6 {[%clk 0:01:06]} 19. Rh3 {[%clk 0:01:40]}  Bb5 {[%clk 0:01:02]} 20. Bxb5 {[%clk 0:01:40]}  axb5 {[%clk 0:01:02]} 21. b4 {[%clk 0:00:57]}  Bg7 {[%clk 0:01:00]} 22. Nb3 {[%clk 0:00:52]}  Kb7 {[%clk 0:00:56]} 23. Rd3 {[%clk 0:00:45]}  Ra8 {[%clk 0:00:56]} 24. Rdd1 {[%clk 0:00:45]}  Rxa1 {[%clk 0:00:54]} 25. Rxa1 {[%clk 0:00:46]}  Ra8 {[%clk 0:00:49]} 26. c6+ {[%clk 0:00:42]} 1-0

[Event "January 2 Late 2024"]
[Site "https://www.chess.com"]
[Date "2024.01.02"]
[Round "5"]
[White "Sroczynski, Maciej"]
[Black "Goryachkina, Aleksandra"]
[Result "1-0"]
[Board "75"]
[TimeControl "180+1"]
[WhiteFideId "1121472"]
[BlackFideId "4147103"]
[WhiteElo "2418"]
[BlackElo "2658"]
[WhiteTeam "POL"]
[BlackTeam "FID"]
[WhiteClock "0:00:12"]
[BlackClock "0:00:00"]

1. d4 {[%clk 0:02:57]}  Nf6 {[%clk 0:02:57]} 2. c4 {[%clk 0:02:57]}  e6 {[%clk 0:02:57]} 3. Nf3 {[%clk 0:02:56]}  d5 {[%clk 0:02:55]} 4. Nc3 {[%clk 0:02:55]}  Bb4 {[%clk 0:02:52]} 5. a3 {[%clk 0:02:44]}  Bxc3+ {[%clk 0:02:48]} 6. bxc3 {[%clk 0:02:45]}  O-O {[%clk 0:02:45]} 7. Bg5 {[%clk 0:02:44]}  h6 {[%clk 0:02:41]} 8. Bh4 {[%clk 0:02:44]}  c5 {[%clk 0:02:41]} 9. e3 {[%clk 0:02:42]}  b6 {[%clk 0:02:36]} 10. cxd5 {[%clk 0:02:39]}  exd5 {[%clk 0:02:34]} 11. Bd3 {[%clk 0:02:33]}  Ba6 {[%clk 0:02:27]} 12. Bxa6 {[%clk 0:02:30]}  Nxa6 {[%clk 0:02:25]} 13. Qa4 {[%clk 0:02:26]}  Nc7 {[%clk 0:02:23]} 14. Ne5 {[%clk 0:02:26]}  g5 {[%clk 0:02:07]} 15. Bg3 {[%clk 0:02:25]}  Ne4 {[%clk 0:02:07]} 16. Rc1 {[%clk 0:02:20]}  Ne6 {[%clk 0:02:03]} 17. f3 {[%clk 0:02:18]}  Nxg3 {[%clk 0:01:46]} 18. hxg3 {[%clk 0:02:18]}  Kg7 {[%clk 0:01:45]} 19. g4 {[%clk 0:01:56]}  Rc8 {[%clk 0:01:43]} 20. Kf2 {[%clk 0:01:43]}  Qe7 {[%clk 0:01:40]} 21. Rhd1 {[%clk 0:01:19]}  Rfe8 {[%clk 0:01:37]} 22. Re1 {[%clk 0:00:54]}  f6 {[%clk 0:01:13]} 23. Nd3 {[%clk 0:00:52]}  Qf7 {[%clk 0:01:10]} 24. e4 {[%clk 0:00:48]}  cxd4 {[%clk 0:00:42]} 25. exd5 {[%clk 0:00:41]}  Nc5 {[%clk 0:00:32]} 26. Nxc5 {[%clk 0:00:37]}  Rxe1 {[%clk 0:00:30]} 27. Rxe1 {[%clk 0:00:28]}  Rxc5 {[%clk 0:00:19]} 28. cxd4 {[%clk 0:00:26]}  Rxd5 {[%clk 0:00:18]} 29. Qc4 {[%clk 0:00:24]}  Rd7 {[%clk 0:00:17]} 30. Qxf7+ {[%clk 0:00:23]}  Kxf7 {[%clk 0:00:17]} 31. Rd1 {[%clk 0:00:21]}  Ke6 {[%clk 0:00:15]} 32. Ke3 {[%clk 0:00:22]}  Kd5 {[%clk 0:00:14]} 33. Kd3 {[%clk 0:00:22]}  Rc7 {[%clk 0:00:12]} 34. Rh1 {[%clk 0:00:22]}  Rh7 {[%clk 0:00:09]} 35. Rc1 {[%clk 0:00:19]}  a5 {[%clk 0:00:08]} 36. a4 {[%clk 0:00:19]}  Rb7 {[%clk 0:00:07]} 37. Rc8 {[%clk 0:00:18]}  Kd6 {[%clk 0:00:07]} 38. Rd8+ {[%clk 0:00:18]}  Ke6 {[%clk 0:00:06]} 39. Ra8 {[%clk 0:00:17]}  Kd6 {[%clk 0:00:05]} 40. Rd8+ {[%clk 0:00:16]}  Ke7 {[%clk 0:00:05]} 41. Rh8 {[%clk 0:00:15]}  Kd6 {[%clk 0:00:05]} 42. Rxh6 {[%clk 0:00:15]}  Ke6 {[%clk 0:00:04]} 43. Rh8 {[%clk 0:00:15]}  b5 {[%clk 0:00:04]} 44. Ra8 {[%clk 0:00:13]}  b4 {[%clk 0:00:03]} 45. Rxa5 {[%clk 0:00:12]}  b3 {[%clk 0:00:02]} 46. Rb5 {[%clk 0:00:12]}  Ra7 {[%clk 0:00:03]} 47. Rb6+ {[%clk 0:00:10]}  Kd5 {[%clk 0:00:02]} 48. Rb5+ {[%clk 0:00:11]}  Kd6 {[%clk 0:00:02]} 49. Rxb3 {[%clk 0:00:11]}  Rxa4 {[%clk 0:00:03]} 50. Ke4 {[%clk 0:00:12]}  Ke6 {[%clk 0:00:03]} 51. Rb6+ {[%clk 0:00:11]}  Kf7 {[%clk 0:00:01]} 52. g3 {[%clk 0:00:12]}  Ra5 {[%clk 0:00:00]} 53. f4 {[%clk 0:00:12]} 1-0

[Event "January 2 Late 2024"]
[Site "https://www.chess.com"]
[Date "2024.01.02"]
[Round "5"]
[White "Petr, Jan"]
[Black "Feuerstack, Aljoscha"]
[Result "1-0"]
[Board "77"]
[TimeControl "180+1"]
[WhiteFideId "345784"]
[BlackFideId "4681932"]
[WhiteElo "2404"]
[BlackElo "2646"]
[WhiteTeam "CZE"]
[BlackTeam "GER"]
[WhiteClock "0:00:14"]
[BlackClock "0:00:15"]

1. e4 {[%clk 0:02:55]}  c6 {[%clk 0:02:58]} 2. d4 {[%clk 0:02:53]}  d5 {[%clk 0:02:59]} 3. e5 {[%clk 0:02:54]}  a6 {[%clk 0:02:59]} 4. Nc3 {[%clk 0:02:26]}  c5 {[%clk 0:02:53]} 5. dxc5 {[%clk 0:02:23]}  e6 {[%clk 0:02:53]} 6. b4 {[%clk 0:02:15]}  a5 {[%clk 0:02:44]} 7. Nb5 {[%clk 0:02:14]}  axb4 {[%clk 0:02:39]} 8. Nd6+ {[%clk 0:02:14]}  Bxd6 {[%clk 0:02:40]} 9. cxd6 {[%clk 0:02:13]}  Nc6 {[%clk 0:02:33]} 10. Nf3 {[%clk 0:02:09]}  f6 {[%clk 0:02:20]} 11. Bb5 {[%clk 0:02:05]}  fxe5 {[%clk 0:01:42]} 12. Nxe5 {[%clk 0:01:59]}  Qxd6 {[%clk 0:01:41]} 13. Qh5+ {[%clk 0:01:58]}  g6 {[%clk 0:01:42]} 14. Nxg6 {[%clk 0:01:53]}  Nf6 {[%clk 0:01:42]} 15. Qh4 {[%clk 0:01:46]}  Rg8 {[%clk 0:01:39]} 16. Bf4 {[%clk 0:01:31]}  Qc5 {[%clk 0:01:30]} 17. Bxc6+ {[%clk 0:01:27]}  bxc6 {[%clk 0:01:27]} 18. Qxf6 {[%clk 0:01:19]}  Rxg6 {[%clk 0:01:14]} 19. Qh8+ {[%clk 0:01:18]}  Qf8 {[%clk 0:01:08]} 20. Qxf8+ {[%clk 0:01:18]}  Kxf8 {[%clk 0:01:09]} 21. O-O {[%clk 0:01:18]}  Rg4 {[%clk 0:00:58]} 22. g3 {[%clk 0:01:13]}  Kf7 {[%clk 0:00:54]} 23. Rfe1 {[%clk 0:01:12]}  Ba6 {[%clk 0:00:52]} 24. a3 {[%clk 0:01:02]}  bxa3 {[%clk 0:00:32]} 25. Rxa3 {[%clk 0:01:03]}  Bb7 {[%clk 0:00:31]} 26. Rf3 {[%clk 0:00:59]}  Ke7 {[%clk 0:00:29]} 27. h4 {[%clk 0:00:49]}  Rg7 {[%clk 0:00:26]} 28. Bg5+ {[%clk 0:00:44]}  Kd7 {[%clk 0:00:27]} 29. Rf6 {[%clk 0:00:43]}  Re8 {[%clk 0:00:24]} 30. Bf4 {[%clk 0:00:40]}  Ba6 {[%clk 0:00:19]} 31. Ra1 {[%clk 0:00:39]}  Ra8 {[%clk 0:00:16]} 32. f3 {[%clk 0:00:32]}  Bb7 {[%clk 0:00:16]} 33. Re1 {[%clk 0:00:32]}  Re8 {[%clk 0:00:15]} 34. Kf2 {[%clk 0:00:32]}  c5 {[%clk 0:00:16]} 35. h5 {[%clk 0:00:26]}  d4 {[%clk 0:00:16]} 36. h6 {[%clk 0:00:25]}  Rg6 {[%clk 0:00:16]} 37. Rxg6 {[%clk 0:00:25]}  hxg6 {[%clk 0:00:17]} 38. Be5 {[%clk 0:00:25]}  Re7 {[%clk 0:00:17]} 39. Bg7 {[%clk 0:00:21]}  Rf7 {[%clk 0:00:16]} 40. h7 {[%clk 0:00:16]}  Rxf3+ {[%clk 0:00:16]} 41. Ke2 {[%clk 0:00:16]}  Re3+ {[%clk 0:00:16]} 42. Kd2 {[%clk 0:00:17]}  Rxg3 {[%clk 0:00:15]} 43. h8=Q {[%clk 0:00:16]}  Bd5 {[%clk 0:00:15]} 44. Be5 {[%clk 0:00:15]}  Rg2+ {[%clk 0:00:15]} 45. Kc1 {[%clk 0:00:15]}  Kc6 {[%clk 0:00:14]} 46. Qc8+ {[%clk 0:00:15]}  Kb5 {[%clk 0:00:15]} 47. Qb8+ {[%clk 0:00:14]}  Kc4 {[%clk 0:00:15]} 48. Qb3# {[%clk 0:00:14]} 1-0